fUST/lending_fUST_20240524
["ID","MTS","AMOUNT","RATE_DAILY","PERIOD"]
[327865197,1716564645118,-7502.62,0.00026027,7]
[327865198,1716564645128,-530.31,0.00026027,7]
[327865199,1716564645138,-2504.19,0.00026027,7]
[327865200,1716564645147,-8030.01,0.00026027,7]
[327865201,1716564645157,-500.0,0.00026027,7]
[327865202,1716564645167,-500.0,0.00026027,7]
[327865203,1716564645177,-889.01,0.00026027,7]
[327865204,1716564645186,-545.91,0.00026027,7]
[327865205,1716564645196,-1614.07,0.00026027,7]
[327865206,1716564645207,-6148.34,0.00026027,7]
[327865207,1716564645216,-1068.24,0.00026027,7]
[327865208,1716564645225,-500.0,0.00026027,7]
[327865209,1716564645235,-924.4,0.00026027,7]
[327865210,1716564645244,-500.0,0.00026027,7]
[327865211,1716564645254,-884.62,0.00026027,7]
[327865212,1716564645263,-500.0,0.00026027,7]
[327865213,1716564645274,-500.0,0.00026027,7]
[327865214,1716564645284,-500.0,0.00026027,7]
[327865215,1716564645294,-4788.64,0.00026027,7]
[327865216,1716564645304,-500.0,0.00026027,7]
[327865217,1716564645314,-500.0,0.00026027,7]
[327865218,1716564645324,-812.5,0.00026027,7]
[327865219,1716564645333,-500.0,0.00026027,7]
[327865220,1716564645342,-500.0,0.00026027,7]
[327865221,1716564645352,-1661.62,0.00026027,7]
[327865222,1716564645362,-500.0,0.00026027,7]
[327865223,1716564645371,-500.0,0.00026027,7]
[327865224,1716564645380,-1173.5,0.00026027,7]
[327865225,1716564645389,-500.0,0.00026027,7]
[327865226,1716564645400,-806.11,0.00026027,7]
[327865227,1716564645409,-3102.78,0.00026027,7]
[327865228,1716564645419,-500.0,0.00026027,7]
[327865229,1716564645429,-1278.05,0.00026027,7]
[327865230,1716564645438,-500.0,0.00026027,7]
[327865231,1716564645448,-500.0,0.00026027,7]
[327865232,1716564645457,-500.0,0.00026027,7]
[327865233,1716564645467,-1329.45,0.00026027,7]
[327865234,1716564645476,-1112.55,0.00026027,7]
[327865235,1716564645486,-653.06,0.00026027,7]
[327865236,1716564645495,-1910.11,0.00026027,7]
[327865237,1716564645504,-500.0,0.00026027,7]
[327865238,1716564645516,-500.0,0.00026027,7]
[327865239,1716564645526,-1049.93,0.00026027,7]
[327865240,1716564645536,-1410.9,0.00026027,7]
[327865241,1716564645546,-500.0,0.00026027,7]
[327865242,1716564645555,-500.0,0.00026027,7]
[327865243,1716564645565,-500.0,0.00026027,7]
[327865244,1716564645574,-942.74,0.00026027,7]
[327865245,1716564645584,-500.0,0.00026027,7]
[327865246,1716564645594,-553.99,0.00026027,7]
[327865247,1716564645604,-540.04,0.00026027,7]
[327865248,1716564645613,-150.83408251,0.0002607,2]
[327865249,1716564645622,-369.07192742,0.00026301,8]
[327865250,1716564645632,-500.0,0.00026301,8]
[327865251,1716564645641,-500.0,0.00026301,8]
[327865252,1716564645650,-500.77,0.00026301,8]
[327865253,1716564645666,-500.0,0.00026301,8]
[327865254,1716564645676,-500.0,0.00026301,8]
[327865255,1716564645686,-500.0,0.00026301,8]
[327865256,1716564645696,-500.0,0.00026301,8]
[327865257,1716564645708,-500.0,0.00026301,8]
[327865258,1716564645718,-500.0,0.00026301,8]
[327865259,1716564645729,-500.0,0.00026301,8]
[327865260,1716564645739,-500.0,0.00026301,8]
[327865261,1716564645749,-500.0,0.00026301,8]
[327865262,1716564645759,-266.45029675,0.00026301,8]
[327865263,1716564645768,-561.5,0.00026301,8]
[327865264,1716564645777,-500.0,0.00026301,8]
[327865265,1716564645920,-349.73879607,0.00026301,8]
[327865266,1716564645945,-500.0,0.00026301,8]
[327865267,1716564645956,-500.0,0.00026301,8]
[327865268,1716564645966,-500.0,0.00026301,8]
[327865269,1716564645975,-609.98,0.00026301,8]
[327865270,1716564645985,-500.0,0.00026301,8]
[327865271,1716564645994,-500.0,0.00026301,8]
[327865275,1716564646004,-616.7,0.00026301,8]
[327865278,1716564646013,-969.24,0.00026301,8]
[327865281,1716564646022,-719.31,0.00026301,8]
[327865283,1716564646031,-1248.42,0.00026301,8]
[327865285,1716564646040,-500.0,0.00026301,8]
[327865287,1716564646050,-945.5,0.00026301,8]
[327865289,1716564646059,-500.0,0.00026301,8]
[327865291,1716564646069,-603.17,0.00026301,8]
[327865293,1716564646078,-2571.68,0.00026301,8]
[327865295,1716564646086,-849.22,0.00026301,8]
[327865297,1716564646096,-749.55,0.00026301,8]
[327865299,1716564646105,-500.0,0.00026301,8]
[327865301,1716564646115,-367.27924875,0.00026301,8]
[327865303,1716564646123,-1059.43,0.00026301,8]
[327865305,1716564646133,-7502.62,0.00026301,8]
[327865307,1716564646141,-530.31,0.00026301,8]
[327865308,1716564646151,-2504.19,0.00026301,8]
[327865309,1716564646160,-8030.01,0.00026301,8]
[327865310,1716564646169,-500.0,0.00026301,8]
[327865311,1716564646178,-500.0,0.00026301,8]
[327865312,1716564646187,-889.01,0.00026301,8]
[327865313,1716564646197,-545.91,0.00026301,8]
[327865314,1716564646208,-1614.07,0.00026301,8]
[327865315,1716564646217,-6148.34,0.00026301,8]
[327865316,1716564646226,-1068.24,0.00026301,8]
[327865317,1716564646236,-500.0,0.00026301,8]
[327865318,1716564646245,-924.4,0.00026301,8]
[327865319,1716564646254,-500.0,0.00026301,8]
[327865320,1716564646263,-884.62,0.00026301,8]
[327865321,1716564646272,-500.0,0.00026301,8]
[327865322,1716564646282,-500.0,0.00026301,8]
[327865323,1716564646291,-500.0,0.00026301,8]
[327865324,1716564646300,-4788.64,0.00026301,8]
[327865325,1716564646309,-500.0,0.00026301,8]
[327865326,1716564646319,-812.5,0.00026301,8]
[327865327,1716564646328,-500.0,0.00026301,8]
[327865328,1716564646337,-500.0,0.00026301,8]
[327865329,1716564646347,-1661.62,0.00026301,8]
[327865331,1716564646356,-500.0,0.00026301,8]
[327865332,1716564646365,-500.0,0.00026301,8]
[327865333,1716564646374,-1173.5,0.00026301,8]
[327865334,1716564646383,-500.0,0.00026301,8]
[327865335,1716564646392,-806.11,0.00026301,8]
[327865336,1716564646402,-3102.78,0.00026301,8]
[327865337,1716564646413,-500.0,0.00026301,8]
[327865338,1716564646422,-1278.05,0.00026301,8]
[327865339,1716564646432,-500.0,0.00026301,8]
[327865340,1716564646442,-500.0,0.00026301,8]
[327865341,1716564646454,-500.0,0.00026301,8]
[327865342,1716564646463,-1329.45,0.00026301,8]
[327865343,1716564646472,-1112.55,0.00026301,8]
[327865344,1716564646481,-653.06,0.00026301,8]
[327865345,1716564646490,-1910.11,0.00026301,8]
[327865346,1716564646500,-500.0,0.00026301,8]
[327865347,1716564646510,-500.0,0.00026301,8]
[327865348,1716564646519,-1049.93,0.00026301,8]
[327865349,1716564646528,-1410.9,0.00026301,8]
[327865350,1716564646538,-500.0,0.00026301,8]
[327865351,1716564646547,-500.0,0.00026301,8]
[327865352,1716564646555,-500.0,0.00026301,8]
[327865353,1716564646565,-942.74,0.00026301,8]
[327865354,1716564646575,-500.0,0.00026301,8]
[327865355,1716564646584,-553.99,0.00026301,8]
[327865356,1716564646593,-540.04,0.00026301,8]
[327865357,1716564646603,-5225.48788401,0.00026395,2]
[327865358,1716564646612,-419.099999,0.000264,2]
[327865359,1716564646622,-500.0,0.00026575,9]
[327865360,1716564646631,-500.0,0.00026575,9]
[327865361,1716564646640,-500.77,0.00026575,9]
[327865362,1716564646651,-500.0,0.00026575,9]
[327865363,1716564646664,-500.0,0.00026575,9]
[327865364,1716564646674,-500.0,0.00026575,9]
[327865365,1716564646683,-500.0,0.00026575,9]
[327865366,1716564646692,-219.08170626,0.00026575,9]
[327865367,1716564646706,-500.0,0.00026575,9]
[327865368,1716564646715,-500.0,0.00026575,9]
[327865369,1716564646724,-223.63706034,0.00026575,9]
[327865370,1716564646736,-500.0,0.00026575,9]
[327865371,1716564646746,-561.5,0.00026575,9]
[327865372,1716564646759,-500.0,0.00026575,9]
[327865373,1716564646768,-500.0,0.00026575,9]
[327865374,1716564646778,-500.0,0.00026575,9]
[327865375,1716564646787,-500.0,0.00026575,9]
[327865376,1716564646797,-609.98,0.00026575,9]
[327865377,1716564646806,-500.0,0.00026575,9]
[327865378,1716564646815,-500.0,0.00026575,9]
[327865379,1716564646825,-616.7,0.00026575,9]
[327865380,1716564646835,-969.24,0.00026575,9]
[327865381,1716564646844,-719.31,0.00026575,9]
[327865382,1716564646854,-1248.42,0.00026575,9]
[327865383,1716564646863,-500.0,0.00026575,9]
[327865384,1716564646872,-945.5,0.00026575,9]
[327865385,1716564646882,-500.0,0.00026575,9]
[327865386,1716564646891,-603.17,0.00026575,9]
[327865387,1716564646901,-2571.68,0.00026575,9]
[327865388,1716564646910,-849.22,0.00026575,9]
[327865389,1716564646920,-749.55,0.00026575,9]
[327865390,1716564646929,-500.0,0.00026575,9]
[327865391,1716564646939,-1059.43,0.00026575,9]
[327865392,1716564646950,-7502.62,0.00026575,9]
[327865393,1716564646959,-530.31,0.00026575,9]
[327865394,1716564646968,-2504.19,0.00026575,9]
[327865395,1716564646977,-8030.01,0.00026575,9]
[327865396,1716564646987,-500.0,0.00026575,9]
[327865397,1716564646996,-500.0,0.00026575,9]
[327865398,1716564647006,-889.01,0.00026575,9]
[327865399,1716564647015,-545.91,0.00026575,9]
[327865400,1716564647025,-1614.07,0.00026575,9]
[327865401,1716564647034,-6148.34,0.00026575,9]
[327865402,1716564647043,-1068.24,0.00026575,9]
[327865403,1716564647053,-500.0,0.00026575,9]
[327865404,1716564647063,-924.4,0.00026575,9]
[327865405,1716564647072,-500.0,0.00026575,9]
[327865406,1716564647082,-884.62,0.00026575,9]
[327865407,1716564647091,-500.0,0.00026575,9]
[327865408,1716564647100,-500.0,0.00026575,9]
[327865409,1716564647109,-500.0,0.00026575,9]
[327865410,1716564647118,-4788.64,0.00026575,9]
[327865411,1716564647127,-500.0,0.00026575,9]
[327865412,1716564647137,-812.5,0.00026575,9]
[327865413,1716564647146,-500.0,0.00026575,9]
[327865414,1716564647156,-500.0,0.00026575,9]
[327865415,1716564647166,-1661.62,0.00026575,9]
[327865416,1716564647176,-500.0,0.00026575,9]
[327865417,1716564647185,-500.0,0.00026575,9]
[327865418,1716564647195,-1173.5,0.00026575,9]
[327865419,1716564647208,-500.0,0.00026575,9]
[327865420,1716564647217,-806.11,0.00026575,9]
[327865421,1716564647227,-3102.78,0.00026575,9]
[327865422,1716564647236,-1278.05,0.00026575,9]
[327865423,1716564647246,-500.0,0.00026575,9]
[327865424,1716564647255,-500.0,0.00026575,9]
[327865425,1716564647265,-500.0,0.00026575,9]
[327865426,1716564647274,-1329.45,0.00026575,9]
[327865427,1716564647283,-1112.55,0.00026575,9]
[327865428,1716564647293,-653.06,0.00026575,9]
[327865429,1716564647302,-1910.11,0.00026575,9]
[327865430,1716564647311,-500.0,0.00026575,9]
[327865431,1716564647321,-288.08997454,0.00026575,9]
[327865432,1716564647330,-1049.93,0.00026575,9]
[327865433,1716564647339,-1410.9,0.00026575,9]
[327865434,1716564647349,-500.0,0.00026575,9]
[327865435,1716564647358,-500.0,0.00026575,9]
[327865436,1716564647368,-500.0,0.00026575,9]
[327865437,1716564647377,-942.74,0.00026575,9]
[327865438,1716564647387,-500.0,0.00026575,9]
[327865439,1716564647396,-553.99,0.00026575,9]
[327865440,1716564647405,-396.70966897,0.00026849,10]
[327865441,1716564647415,-500.0,0.00026849,10]
[327865442,1716564647424,-500.77,0.00026849,10]
[327865443,1716564647433,-500.0,0.00026849,10]
[327865444,1716564647443,-500.0,0.00026849,10]
[327865445,1716564647453,-500.0,0.00026849,10]
[327865446,1716564647463,-500.0,0.00026849,10]
[327865447,1716564647472,-500.0,0.00026849,10]
[327865448,1716564647481,-500.0,0.00026849,10]
[327865449,1716564647490,-500.0,0.00026849,10]
[327865450,1716564647500,-561.5,0.00026849,10]
[327865451,1716564647509,-500.0,0.00026849,10]
[327865452,1716564647519,-500.0,0.00026849,10]
[327865453,1716564647528,-500.0,0.00026849,10]
[327865454,1716564647537,-500.0,0.00026849,10]
[327865455,1716564647547,-609.98,0.00026849,10]
[327865456,1716564647557,-500.0,0.00026849,10]
[327865457,1716564647566,-500.0,0.00026849,10]
[327865458,1716564647576,-616.7,0.00026849,10]
[327865459,1716564647585,-969.24,0.00026849,10]
[327865460,1716564647594,-719.31,0.00026849,10]
[327865461,1716564647604,-1248.42,0.00026849,10]
[327865462,1716564647614,-500.0,0.00026849,10]
[327865463,1716564647623,-945.5,0.00026849,10]
[327865464,1716564647632,-500.0,0.00026849,10]
[327865465,1716564647642,-603.17,0.00026849,10]
[327865466,1716564647652,-2571.68,0.00026849,10]
[327865467,1716564647664,-849.22,0.00026849,10]
[327865468,1716564647674,-749.55,0.00026849,10]
[327865469,1716564647683,-292.59626494,0.00026849,10]
[327865470,1716564647693,-1059.43,0.00026849,10]
[327865471,1716564647703,-7502.62,0.00026849,10]
[327865472,1716564647713,-530.31,0.00026849,10]
[327865473,1716564647722,-2504.19,0.00026849,10]
[327865474,1716564647731,-8030.01,0.00026849,10]
[327865475,1716564647743,-500.0,0.00026849,10]
[327865476,1716564647754,-500.0,0.00026849,10]
[327865477,1716564647764,-889.01,0.00026849,10]
[327865478,1716564647773,-545.91,0.00026849,10]
[327865479,1716564647783,-1614.07,0.00026849,10]
[327865480,1716564647793,-6148.34,0.00026849,10]
[327865481,1716564647802,-1068.24,0.00026849,10]
[327865482,1716564647812,-500.0,0.00026849,10]
[327865483,1716564647821,-924.4,0.00026849,10]
[327865484,1716564647831,-500.0,0.00026849,10]
[327865485,1716564647841,-884.62,0.00026849,10]
[327865486,1716564647850,-500.0,0.00026849,10]
[327865487,1716564647860,-500.0,0.00026849,10]
[327865488,1716564647869,-500.0,0.00026849,10]
[327865489,1716564647879,-4788.64,0.00026849,10]
[327865490,1716564647889,-500.0,0.00026849,10]
[327865491,1716564647898,-812.5,0.00026849,10]
[327865492,1716564647907,-595.96641044,0.00026849,10]
[327865493,1716564647917,-500.0,0.00026849,10]
[327865494,1716564647927,-1661.62,0.00026849,10]
[327865495,1716564647936,-500.0,0.00026849,10]
[327865496,1716564647946,-500.0,0.00026849,10]
[327865497,1716564647957,-1173.5,0.00026849,10]
[327865498,1716564647967,-500.0,0.00026849,10]
[327865499,1716564647976,-806.11,0.00026849,10]
[327865500,1716564647985,-3102.78,0.00026849,10]
[327865501,1716564647995,-1278.05,0.00026849,10]
[327865502,1716564648004,-500.0,0.00026849,10]
[327865503,1716564648013,-500.0,0.00026849,10]
[327865504,1716564648023,-500.0,0.00026849,10]
[327865505,1716564648032,-1329.45,0.00026849,10]
[327865506,1716564648043,-1112.55,0.00026849,10]
[327865507,1716564648053,-653.06,0.00026849,10]
[327865508,1716564648063,-1910.11,0.00026849,10]
[327865509,1716564648072,-500.0,0.00026849,10]
[327865510,1716564648082,-1049.93,0.00026849,10]
[327865511,1716564648091,-1410.9,0.00026849,10]
[327865512,1716564648101,-500.0,0.00026849,10]
[327865513,1716564648111,-500.0,0.00026849,10]
[327865514,1716564648120,-500.0,0.00026849,10]
[327865515,1716564648129,-942.74,0.00026849,10]
[327865516,1716564648139,-500.0,0.00026849,10]
[327865517,1716564648149,-583.2496618,0.00027014,2]
[327865518,1716564648159,-151.0,0.00027014,2]
[327865519,1716564648168,-157.898362,0.00027014,2]
[327865520,1716564648178,-151.0,0.00027014,2]
[327865521,1716564648187,-151.0,0.00027014,2]
[327865522,1716564648198,-151.0,0.00027014,2]
[327865523,1716564648208,-500.0,0.00027123,11]
[327865524,1716564648217,-500.77,0.00027123,11]
[327865525,1716564648226,-500.0,0.00027123,11]
[327865526,1716564648236,-500.0,0.00027123,11]
[327865527,1716564648245,-500.0,0.00027123,11]
[327865528,1716564648254,-500.0,0.00027123,11]
[327865529,1716564648263,-500.0,0.00027123,11]
[327865530,1716564648272,-500.0,0.00027123,11]
[327865531,1716564648282,-500.0,0.00027123,11]
[327865532,1716564648291,-561.5,0.00027123,11]
[327865533,1716564648300,-500.0,0.00027123,11]
[327865534,1716564648310,-427.79312952,0.00027123,11]
[327865535,1716564648319,-500.0,0.00027123,11]
[327865536,1716564648330,-500.0,0.00027123,11]
[327865537,1716564648339,-609.98,0.00027123,11]
[327865538,1716564648348,-500.0,0.00027123,11]
[327865539,1716564648357,-500.0,0.00027123,11]
[327865540,1716564648366,-616.7,0.00027123,11]
[327865541,1716564648375,-969.24,0.00027123,11]
[327865542,1716564648386,-719.31,0.00027123,11]
[327865543,1716564648396,-1248.42,0.00027123,11]
[327865544,1716564648405,-500.0,0.00027123,11]
[327865545,1716564648414,-945.5,0.00027123,11]
[327865546,1716564648423,-500.0,0.00027123,11]
[327865547,1716564648432,-603.17,0.00027123,11]
[327865548,1716564648442,-2571.68,0.00027123,11]
[327865549,1716564648454,-849.22,0.00027123,11]
[327865550,1716564648463,-749.55,0.00027123,11]
[327865551,1716564648471,-1059.43,0.00027123,11]
[327865552,1716564648481,-7502.62,0.00027123,11]
[327865553,1716564648492,-530.31,0.00027123,11]
[327865554,1716564648503,-2504.19,0.00027123,11]
[327865555,1716564648514,-8030.01,0.00027123,11]
[327865556,1716564648524,-500.0,0.00027123,11]
[327865557,1716564648533,-500.0,0.00027123,11]
[327865558,1716564648543,-889.01,0.00027123,11]
[327865559,1716564648552,-545.91,0.00027123,11]
[327865560,1716564648562,-6148.34,0.00027123,11]
[327865561,1716564648574,-1068.24,0.00027123,11]
[327865562,1716564648584,-1614.07,0.00027123,11]
[327865563,1716564648594,-500.0,0.00027123,11]
[327865564,1716564648604,-924.4,0.00027123,11]
[327865565,1716564648721,-500.0,0.00027123,11]
[327865566,1716564648732,-884.62,0.00027123,11]
[327865567,1716564648742,-500.0,0.00027123,11]
[327865568,1716564648751,-500.0,0.00027123,11]
[327865569,1716564648761,-500.0,0.00027123,11]
[327865570,1716564648770,-4788.64,0.00027123,11]
[327865571,1716564648779,-500.0,0.00027123,11]
[327865572,1716564648790,-812.5,0.00027123,11]
[327865573,1716564648799,-500.0,0.00027123,11]
[327865574,1716564648809,-1661.62,0.00027123,11]
[327865575,1716564648819,-581.31727498,0.00027123,11]
[327865576,1716564648828,-500.0,0.00027123,11]
[327865577,1716564648837,-1173.5,0.00027123,11]
[327865578,1716564648847,-500.0,0.00027123,11]
[327865579,1716564648857,-806.11,0.00027123,11]
[327865580,1716564648867,-3102.78,0.00027123,11]
[327865581,1716564648875,-151.0,0.00027123,2]
[327865582,1716564648887,-1278.05,0.00027123,11]
[327865583,1716564648897,-500.0,0.00027123,11]
[327865584,1716564648907,-500.0,0.00027123,11]
[327865585,1716564648918,-500.0,0.00027123,11]
[327865586,1716564648928,-151.0,0.00027123,2]
[327865587,1716564648938,-151.0,0.00027123,2]
[327865588,1716564648948,-151.0,0.00027123,2]
[327865589,1716564648958,-1329.45,0.00027123,11]
[327865590,1716564648967,-151.0,0.00027123,2]
[327865591,1716564648977,-1112.55,0.00027123,11]
[327865592,1716564648987,-653.06,0.00027123,11]
[327865593,1716564648997,-1910.11,0.00027123,11]
[327865594,1716564649007,-500.0,0.00027123,11]
[327865595,1716564649016,-236.159369,0.00027123,2]
[327865596,1716564649026,-236.159369,0.00027123,2]
[327865597,1716564649035,-1049.93,0.00027123,11]
[327865598,1716564649045,-1410.9,0.00027123,11]
[327865599,1716564649055,-405.61601921,0.00027123,11]
[327865600,1716564649065,-500.0,0.00027123,11]
[327865601,1716564649074,-942.74,0.00027123,11]
[327865602,1716564649083,-500.0,0.00027123,11]
[327865603,1716564649093,-306.0,0.00027218,2]
[327865604,1716564649103,-153.0,0.00027218,2]
[327865605,1716564649112,-1000.0,0.00027232,2]
[327865606,1716564649122,-1000.0,0.00027261,2]
[327865607,1716564649131,-286.6627749,0.00027299,2]
[327865608,1716564649140,-1000.0,0.0002735,2]
[327865609,1716564649150,-1000.0,0.00027361,2]
[327865610,1716564649159,-1000.0,0.00027371,2]
[327865611,1716564649169,-2183.11427539,0.0002739,2]
[327865612,1716564649178,-500.0,0.00027397,12]
[327865613,1716564649187,-500.77,0.00027397,12]
[327865614,1716564649196,-500.0,0.00027397,12]
[327865615,1716564649207,-500.0,0.00027397,12]
[327865616,1716564649216,-500.0,0.00027397,12]
[327865617,1716564649226,-500.0,0.00027397,12]
[327865618,1716564649237,-500.0,0.00027397,12]
[327865619,1716564649247,-500.0,0.00027397,12]
[327865620,1716564649256,-500.0,0.00027397,12]
[327865621,1716564649266,-561.5,0.00027397,12]
[327865622,1716564649275,-500.0,0.00027397,12]
[327865623,1716564649284,-500.0,0.00027397,12]
[327865624,1716564649294,-500.0,0.00027397,12]
[327865625,1716564649303,-609.98,0.00027397,12]
[327865626,1716564649313,-500.0,0.00027397,12]
[327865627,1716564649322,-500.0,0.00027397,12]
[327865628,1716564649332,-616.7,0.00027397,12]
[327865629,1716564649341,-969.24,0.00027397,12]
[327865630,1716564649350,-719.31,0.00027397,12]
[327865631,1716564649360,-1248.42,0.00027397,12]
[327865632,1716564649369,-500.0,0.00027397,12]
[327865633,1716564649378,-945.5,0.00027397,12]
[327865634,1716564649388,-500.0,0.00027397,12]
[327865635,1716564649398,-603.17,0.00027397,12]
[327865636,1716564649407,-2571.68,0.00027397,12]
[327865637,1716564649416,-849.22,0.00027397,12]
[327865638,1716564649425,-749.55,0.00027397,12]
[327865639,1716564649435,-1059.43,0.00027397,12]
[327865640,1716564649445,-7502.62,0.00027397,12]
[327865641,1716564649456,-530.31,0.00027397,12]
[327865642,1716564649465,-2504.19,0.00027397,12]
[327865643,1716564649474,-8030.01,0.00027397,12]
[327865644,1716564649484,-500.0,0.00027397,12]
[327865645,1716564649493,-500.0,0.00027397,12]
[327865646,1716564649504,-889.01,0.00027397,12]
[327865647,1716564649513,-151.0,0.00027397,2]
[327865648,1716564649523,-545.91,0.00027397,12]
[327865649,1716564649534,-6148.34,0.00027397,12]
[327865650,1716564649544,-305.043206,0.00027397,2]
[327865651,1716564649555,-1068.24,0.00027397,12]
[327865652,1716564649564,-1614.07,0.00027397,12]
[327865653,1716564649574,-305.043206,0.00027397,2]
[327865654,1716564649584,-500.0,0.00027397,12]
[327865655,1716564649594,-315.007455,0.00027397,2]
[327865656,1716564649604,-924.4,0.00027397,12]
[327865657,1716564649614,-500.0,0.00027397,12]
[327865658,1716564649624,-315.007455,0.00027397,2]
[327865659,1716564649634,-884.62,0.00027397,12]
[327865660,1716564649644,-500.0,0.00027397,12]
[327865661,1716564649654,-244.127757,0.00027397,2]
[327865662,1716564649666,-500.0,0.00027397,12]
[327865663,1716564649676,-244.127757,0.00027397,2]
[327865664,1716564649685,-500.0,0.00027397,12]
[327865665,1716564649695,-151.0,0.00027397,2]
[327865666,1716564649705,-4788.64,0.00027397,12]
[327865667,1716564649714,-151.0,0.00027397,2]
[327865668,1716564649724,-500.0,0.00027397,12]
[327865669,1716564649734,-812.5,0.00027397,12]
[327865670,1716564649744,-1661.62,0.00027397,12]
[327865671,1716564649754,-500.0,0.00027397,12]
[327865672,1716564649764,-1173.5,0.00027397,12]
[327865673,1716564649775,-267.55515889,0.00027397,12]
[327865674,1716564649785,-241.488827,0.00027397,2]
[327865675,1716564649795,-806.11,0.00027397,12]
[327865676,1716564649805,-241.488827,0.00027397,2]
[327865677,1716564649814,-3102.78,0.00027397,12]
[327865678,1716564649824,-1278.05,0.00027397,12]
[327865679,1716564649833,-440.70151592,0.00027397,12]
[327865680,1716564649844,-500.0,0.00027397,12]
[327865681,1716564649854,-500.0,0.00027397,12]
[327865682,1716564649864,-153.534979,0.00027397,2]
[327865683,1716564649873,-153.534979,0.00027397,2]
[327865684,1716564649883,-1329.45,0.00027397,12]
[327865685,1716564649892,-1112.55,0.00027397,12]
[327865686,1716564649901,-653.06,0.00027397,12]
[327865687,1716564649911,-1910.11,0.00027397,12]
[327865688,1716564649921,-500.0,0.00027397,12]
[327865689,1716564649930,-1049.93,0.00027397,12]
[327865690,1716564649939,-1410.9,0.00027397,12]
[327865691,1716564649949,-500.0,0.00027397,12]
[327865692,1716564649959,-500.0,0.00027397,2]
[327865693,1716564649969,-256.89400806,0.00027397,2]
[327865694,1716564649979,-500.0,0.00027397,2]
[327865695,1716564649989,-500.0,0.00027397,2]
[327865696,1716564649999,-500.0,0.00027397,2]
[327865697,1716564650008,-500.0,0.00027397,2]
[327865698,1716564650019,-500.0,0.00027397,2]
[327865699,1716564650028,-500.0,0.00027397,2]
[327865700,1716564650038,-500.0,0.00027397,2]
[327865701,1716564650048,-500.0,0.00027397,2]
[327865702,1716564650058,-500.0,0.00027397,12]
[327865703,1716564650067,-153.127443,0.00027397,2]
[327865704,1716564650077,-300.0,0.000274,2]
[327865705,1716564650087,-591.0,0.000274,2]
[327865706,1716564650096,-1000.0,0.00027412,2]
[327865707,1716564650105,-532.23225467,0.00027431,2]
[327865708,1716564650115,-1000.0,0.00027436,2]
[327865709,1716564650124,-1000.0,0.00027438,2]
[327865710,1716564650134,-1000.0,0.00027453,2]
[327865711,1716564650143,-153.0,0.00027479,2]
[327865712,1716564650153,-1000.0,0.00027499,2]
[327865713,1716564650162,-1000.0,0.00027533,2]
[327865714,1716564650172,-286.6627749,0.0002758,2]
[327865715,1716564650181,-1000.0,0.00027581,2]
[327865716,1716564650191,-500.0,0.00027671,13]
[327865717,1716564650201,-500.77,0.00027671,13]